fUST/lending_fUST_20251105
["ID","MTS","AMOUNT","RATE_DAILY","PERIOD"]
[393215090,1762326660163,-153.0,0.000298,7]
[393215091,1762326660172,-151.0,0.000298,7]
[393215092,1762326660181,-153.0,0.000298,7]
[393215093,1762326660191,-151.0,0.000298,7]
[393215094,1762326660200,-153.0,0.000298,7]
[393215095,1762326660210,-203.37124752,0.000298,7]
[393215096,1762326660219,-153.0,0.000298,7]
[393215097,1762326660229,-153.0,0.000298,7]
[393215098,1762326660238,-298.251697,0.000298,7]
[393215099,1762326660247,-153.0,0.000298,7]
[393215100,1762326660257,-169.09420128,0.000298,7]
[393215101,1762326660266,-153.0,0.000298,7]
[393215102,1762326660277,-153.0,0.000298,7]
[393215103,1762326660286,-302.0,0.000298,7]
[393215104,1762326660296,-166.0,0.000298,7]
[393215105,1762326660305,-166.0,0.000298,7]
[393215106,1762326660315,-166.0,0.000298,7]
[393215107,1762326660324,-332.0,0.000298,7]
[393215108,1762326660334,-332.0,0.000298,7]
[393215109,1762326660343,-332.0,0.000298,7]
[393215110,1762326660352,-338.48948942,0.000298,7]
[393215111,1762326660362,-332.0,0.000298,7]
[393215112,1762326660371,-332.0,0.000298,7]
[393215113,1762326660381,-332.0,0.000298,7]
[393215114,1762326660391,-332.0,0.000298,7]
[393215115,1762326660401,-332.0,0.000298,7]
[393215116,1762326660410,-332.0,0.000298,7]
[393215117,1762326660425,-332.0,0.000298,7]
[393215118,1762326660434,-332.0,0.000298,7]
[393215119,1762326660444,-332.0,0.000298,7]
[393215120,1762326660455,-332.0,0.000298,7]
[393215121,1762326660464,-332.0,0.000298,7]
[393215122,1762326660475,-332.0,0.000298,7]
[393215123,1762326660484,-332.0,0.000298,7]
[393215124,1762326660495,-332.0,0.000298,7]
[393215125,1762326660504,-332.0,0.000298,7]
[393215126,1762326660514,-332.0,0.000298,7]
[393215127,1762326660524,-332.0,0.000298,7]
[393215128,1762326660533,-332.0,0.000298,7]
[393215129,1762326660542,-332.0,0.000298,7]
[393215130,1762326660552,-332.0,0.000298,7]
[393215131,1762326660561,-332.0,0.000298,7]
[393215132,1762326660570,-332.0,0.000298,7]
[393215133,1762326660580,-332.0,0.000298,7]
[393215134,1762326660589,-332.0,0.000298,7]
[393215135,1762326660597,-332.0,0.000298,7]
[393215136,1762326660607,-332.0,0.000298,7]
[393215137,1762326660616,-231.98848879,0.000298,7]
[393215138,1762326660626,-331.0,0.000298,7]
[393215139,1762326660635,-331.0,0.000298,7]
[393215140,1762326660644,-331.0,0.000298,7]
[393215141,1762326660654,-331.0,0.000298,7]
[393215142,1762326660663,-331.0,0.000298,7]
[393215143,1762326660672,-331.0,0.000298,7]
[393215144,1762326660682,-331.0,0.000298,7]
[393215145,1762326660691,-156.28196455,0.000298,7]
[393215146,1762326660700,-332.0,0.000298,7]
[393215147,1762326660709,-172.81835685,0.000298,7]
[393215148,1762326660718,-303.498553,0.00029942,2]
[393215149,1762326660728,-160.0,0.00029951,3]
[393215150,1762326660737,-171.733597,0.00029983,60]
[393215151,1762326660746,-94181.54375894,0.0003,20]
[393215152,1762326660756,-200.0,0.0003,2]
[393215153,1762326660765,-900.0,0.0003,2]
[393215154,1762326660774,-159.88,0.0003,7]
[393215155,1762326660784,-261.65882193,0.0003,2]
[393215156,1762326660793,-702.4752784,0.0003,4]
[393215157,1762326660803,-200.0,0.0003,7]
[393215158,1762326660813,-14702.53830811,0.0003,2]
[393215159,1762326660823,-268.25286881,0.0003,2]
[393215160,1762326660832,-303.498553,0.00030042,3]
[393215161,1762326660841,-286.31652768,0.0003013,2]
[393215162,1762326660851,-534.9197342,0.00030137,5]
[393215163,1762326660861,-650.0,0.00030137,5]
[393215164,1762326660870,-1660.0,0.00030205,2]
[393215165,1762326660880,-672.51407206,0.0003022,2]
[393215166,1762326660889,-750.0,0.0003026,5]
[393215167,1762326660900,-5000.0,0.00030329,2]
[393215168,1762326660909,-258.17628378,0.00030391,7]
[393215169,1762326660918,-155.0,0.00030447,14]
[393215170,1762326660928,-160.0,0.00030502,4]
[393215171,1762326660939,-507.47603235,0.00030573,2]
[393215172,1762326660949,-2000.0,0.00030665,7]
[393215173,1762326660959,-862.45084266,0.00030685,5]
[393215174,1762326660970,-1760.0,0.00030753,2]
[393215175,1762326660979,-850.0,0.00030808,5]
[393215176,1762326660988,-986.0,0.00030822,2]
[393215177,1762326660998,-628.0,0.00030822,2]
[393215178,1762326661007,-2165.0,0.00030822,2]
[393215179,1762326661016,-6478.09,0.000309,7]
[393215180,1762326661026,-304.40133805,0.0003099,2]
[393215181,1762326661035,-160.0,0.00031054,5]
[393215182,1762326661044,-30000.0,0.0003112,2]
[393215183,1762326661053,-1860.0,0.00031301,2]
[393215184,1762326661062,-950.0,0.00031356,5]
[393215185,1762326661071,-5000.0,0.00031413,2]
[393215186,1762326661080,-1000.0,0.00031583,30]
[393215187,1762326661089,-791.0,0.00031583,30]
[393215188,1762326661098,-160.0,0.00031605,6]
[393215189,1762326661108,-563.471668,0.0003172,2]
[393215190,1762326661117,-2644.0,0.00031803,2]
[393215191,1762326661127,-1960.0,0.00031849,2]
[393215192,1762326661136,-36768.25169874,0.000319,2]
[393215193,1762326661145,-1055.64060695,0.00031904,5]
[393215194,1762326661154,-156.0,0.00031918,49]
[393215195,1762326661163,-200.0,0.000321,7]
[393215196,1762326661172,-160.0,0.00032156,7]
[393215197,1762326661182,-1146.60662878,0.00032397,2]
[393215198,1762326661191,-5000.0,0.00032496,2]
[393215199,1762326661199,-5030.98,0.000325,2]
[393215200,1762326661209,-200.0,0.0003251,7]
[393215201,1762326661218,-547.89447741,0.00032573,2]
[393215202,1762326661227,-160.0,0.00032708,8]
[393215203,1762326661236,-500.0,0.00032876,2]
[393215204,1762326661245,-500.0,0.00032876,2]
[393215205,1762326661254,-500.0,0.00032876,2]
[393215206,1762326661264,-1000.0,0.00032876,5]
[393215207,1762326661273,-561.0,0.00032876,2]
[393215208,1762326661282,-1000.0,0.00032876,2]
[393215209,1762326661292,-1000.0,0.00032876,2]
[393215210,1762326661301,-1950.0,0.00032876,14]
[393215211,1762326661310,-1950.0,0.00032876,14]
[393215212,1762326661319,-1107.03997007,0.00032876,14]
[393215213,1762326661329,-151.0,0.00032876,14]
[393215214,1762326661338,-151.0,0.00032876,14]
[393215215,1762326661348,-151.0,0.00032876,14]
[393215216,1762326661356,-151.0,0.00032876,14]
[393215217,1762326661365,-151.0,0.00032876,14]
[393215218,1762326661375,-151.88577962,0.00032876,14]
[393215219,1762326661384,-151.0,0.00032877,31]
[393215220,1762326661393,-151.0,0.00032877,31]
[393215221,1762326661402,-151.0,0.00032877,31]
[393215222,1762326661411,-151.0,0.00032877,31]
[393215223,1762326661424,-151.0,0.00032877,31]
[393215224,1762326661434,-215.286483,0.00032877,31]
[393215225,1762326661444,-151.0,0.00032877,31]
[393215226,1762326661453,-151.0,0.00032877,31]
[393215227,1762326661463,-151.0,0.00032877,31]
[393215228,1762326661473,-151.0,0.00032877,31]
[393215229,1762326661483,-151.0,0.00032877,31]
[393215230,1762326661495,-151.0,0.00032877,31]
[393215231,1762326661505,-151.0,0.00032877,31]
[393215232,1762326661514,-151.0,0.00032877,31]
[393215233,1762326661524,-151.0,0.00032877,31]
[393215234,1762326661534,-151.0,0.00032877,31]
[393215235,1762326661543,-151.0,0.00032877,31]
[393215236,1762326661552,-151.0,0.00032877,31]
[393215237,1762326661562,-155.337948,0.00032877,31]
[393215238,1762326661572,-2000.0,0.00032998,7]
[393215239,1762326661582,-82160.56009337,0.00033,2]
[393215240,1762326661591,-303.498553,0.00033084,3]
[393215241,1762326661600,-202.43,0.000331,7]
[393215242,1762326661610,-878.698328,0.00033165,2]
[393215243,1762326661620,-1943.88068671,0.000332,117]
[393215244,1762326661630,-1943.88068668,0.000332,117]
[393215245,1762326661640,-1943.88068668,0.000332,117]
[393215246,1762326661651,-1943.88068668,0.000332,117]
[393215247,1762326661660,-160.0,0.00033259,9]
[393215248,1762326661669,-336.47254069,0.00033261,7]
[393215249,1762326661679,-6478.09,0.000333,14]
[393215250,1762326661688,-501.69768533,0.00033424,2]
[393215251,1762326661698,-500.0,0.00033424,2]
[393215252,1762326661707,-500.0,0.00033424,2]
[393215253,1762326661716,-291.90186948,0.00033424,5]
[393215254,1762326661725,-561.0,0.00033424,2]
[393215255,1762326661735,-1000.0,0.00033424,2]
[393215256,1762326661744,-1000.0,0.00033424,2]
[393215257,1762326661835,-5000.0,0.00033579,2]
[393215258,1762326661847,-1000.0,0.00033699,5]
[393215259,1762326661856,-160.0,0.00033811,10]
[393215260,1762326661866,-986.0,0.00033822,2]
[393215261,1762326661875,-628.0,0.00033822,2]
[393215262,1762326661884,-2165.0,0.00033822,2]
[393215263,1762326661894,-500.0,0.00033972,2]
[393215264,1762326661903,-561.0,0.00033972,2]
[393215265,1762326661912,-1000.0,0.00033972,2]
[393215266,1762326661922,-1000.0,0.00033972,2]
[393215267,1762326661931,-5073.15317808,0.0003398,2]
[393215268,1762326661940,-50000.0,0.00034,5]
[393215269,1762326661949,-639.0,0.00034,14]
[393215270,1762326661958,-300.0,0.00034,120]
[393215271,1762326661967,-200.0,0.000341,7]
[393215272,1762326661976,-160.0,0.00034362,11]
[393215273,1762326661986,-500.0,0.0003452,2]
[393215274,1762326661996,-561.0,0.0003452,2]
[393215275,1762326662005,-1000.0,0.0003452,2]
[393215276,1762326662015,-1000.0,0.0003452,2]
[393215277,1762326662024,-588.31292246,0.00034573,120]
[393215278,1762326662034,-563.471668,0.0003463,2]
[393215279,1762326662043,-5000.0,0.00034662,3]
[393215280,1762326662052,-1000.0,0.00034741,30]
[393215281,1762326662062,-1000.0,0.00034741,30]
[393215282,1762326662072,-321.29806714,0.000349,3]
[393215283,1762326662081,-160.0,0.00034914,12]
[393215284,1762326662091,-166.59,0.00034981,60]
[393215285,1762326662100,-154.0,0.00035,120]
[393215286,1762326662109,-5030.98,0.00035,14]
[393215287,1762326662119,-500.0,0.00035068,2]
[393215288,1762326662128,-561.0,0.00035068,2]
[393215289,1762326662137,-1000.0,0.00035068,2]
[393215290,1762326662148,-1000.0,0.00035068,2]
[393215291,1762326662157,-166.59,0.00035081,60]
[393215292,1762326662167,-159.88,0.000351,7]
[393215293,1762326662177,-200.0,0.000351,7]
[393215294,1762326662186,-303.498553,0.000351,60]
[393215295,1762326662195,-166.59,0.00035181,60]
[393215296,1762326662204,-166.59,0.00035281,60]
[393215297,1762326662213,-4277.4866985,0.000353,2]
[393215298,1762326662223,-2000.0,0.00035332,7]
[393215299,1762326662232,-166.59,0.00035381,60]
[393215300,1762326662242,-6478.09,0.000354,14]
[393215301,1762326662251,-303.498553,0.00035431,60]
[393215302,1762326662260,-303.498553,0.00035434,2]
[393215303,1762326662269,-165.212425,0.00035434,2]
[393215304,1762326662279,-160.0,0.00035465,13]
[393215305,1762326662288,-166.59,0.00035481,60]
[393215306,1762326662298,-166.59,0.00035581,60]
[393215307,1762326662308,-500.0,0.00035616,2]
[393215308,1762326662317,-561.0,0.00035616,2]
[393215309,1762326662326,-1000.0,0.00035616,2]
[393215310,1762326662335,-1000.0,0.00035616,2]
[393215311,1762326662345,-179.779996,0.00035616,120]
[393215312,1762326662354,-241.881054,0.00035616,31]
[393215313,1762326662363,-241.881054,0.00035616,31]
[393215314,1762326662372,-241.881054,0.00035616,31]
[393215315,1762326662381,-241.881054,0.00035616,31]
[393215316,1762326662390,-241.881054,0.00035616,31]
[393215317,1762326662399,-241.881054,0.00035616,31]
[393215318,1762326662408,-241.881054,0.00035616,31]
[393215319,1762326662422,-241.881054,0.00035616,31]
[393215320,1762326662432,-241.881054,0.00035616,31]
[393215321,1762326662441,-241.881054,0.00035616,31]
[393215322,1762326662450,-241.881054,0.00035616,31]
[393215323,1762326662460,-241.881054,0.00035616,31]
[393215324,1762326662469,-241.881054,0.00035616,31]
[393215325,1762326662478,-241.881054,0.00035616,31]
[393215326,1762326662487,-241.881054,0.00035616,31]
[393215327,1762326662498,-241.881054,0.00035616,31]
[393215328,1762326662507,-241.881054,0.00035616,31]
[393215329,1762326662516,-241.881054,0.00035616,31]
[393215330,1762326662526,-241.881054,0.00035616,31]
[393215331,1762326662535,-241.881057,0.00035616,31]
[393215332,1762326662544,-166.59,0.00035681,60]
[393215333,1762326662553,-5000.0,0.00035746,3]
[393215334,1762326662562,-303.498553,0.00035762,60]
[393215335,1762326662571,-166.59,0.00035781,60]
[393215336,1762326662581,-179.71246006,0.00035848,15]
[393215337,1762326662590,-200.0,0.00035853,120]
[393215338,1762326662599,-166.59,0.00035881,60]
[393215339,1762326662608,-166.59,0.00035981,60]
[393215340,1762326662617,-16923.96048574,0.00036,2]
[393215341,1762326662626,-160.0,0.00036016,14]
[393215342,1762326662636,-166.59,0.00036081,60]
[393215343,1762326662645,-303.498553,0.00036093,60]
[393215344,1762326662654,-165.212425,0.00036093,60]
[393215345,1762326662663,-303.498553,0.00036126,3]
[393215346,1762326662673,-500.0,0.00036164,2]
[393215347,1762326662682,-561.0,0.00036164,2]
[393215348,1762326662691,-1000.0,0.00036164,2]
[393215349,1762326662701,-1000.0,0.00036164,2]
[393215350,1762326662711,-166.59,0.00036181,60]
[393215351,1762326662720,-203.96197928,0.0003621,2]
[393215352,1762326662729,-265.29816223,0.0003624,2]
[393215353,1762326662738,-166.59,0.00036281,60]
[393215354,1762326662747,-166.59,0.00036381,60]
[393215355,1762326662756,-5030.98,0.000364,14]
[393215356,1762326662765,-303.498553,0.00036424,60]
[393215357,1762326662775,-165.212425,0.00036424,60]
[393215358,1762326662786,-200.0,0.0003645,120]
[393215359,1762326662795,-166.59,0.00036481,60]
[393215360,1762326662804,-160.0,0.00036568,15]
[393215361,1762326662812,-166.59,0.00036581,60]
[393215362,1762326662822,-2460.9591719,0.0003663,2]
[393215363,1762326662832,-302.0,0.00036639,2]
[393215364,1762326662841,-302.0,0.00036639,2]
[393215365,1762326662850,-166.59,0.00036681,60]
[393215366,1762326662859,-154.0,0.000367,120]
[393215367,1762326662868,-500.0,0.00036712,2]
[393215368,1762326662877,-561.0,0.00036712,2]
[393215369,1762326662886,-1000.0,0.00036712,2]
[393215370,1762326662896,-1000.0,0.00036712,2]
[393215371,1762326662905,-302.0,0.00036728,2]
[393215372,1762326662914,-151.43412,0.00036729,2]
[393215373,1762326662923,-500.0,0.0003673,30]
[393215374,1762326662932,-500.0,0.0003673,30]
[393215375,1762326662942,-166.59,0.00036781,60]
[393215376,1762326662951,-986.0,0.00036822,2]
[393215377,1762326662960,-628.0,0.00036822,2]
[393215378,1762326662969,-2165.0,0.00036822,2]
[393215379,1762326662979,-165.0,0.00036849,93]
[393215380,1762326662988,-166.59,0.00036881,60]
[393215381,1762326662997,-400.0,0.000369,120]
[393215382,1762326663006,-166.59,0.00036981,60]
[393215383,1762326663015,-9000.0,0.00037,14]
[393215384,1762326663025,-14716.31653319,0.00037,2]
[393215385,1762326663035,-2033.98219213,0.00037,2]
[393215386,1762326663045,-575.45789505,0.00037,60]
[393215387,1762326663054,-166.59,0.00037081,60]
[393215388,1762326663063,-160.0,0.00037119,16]
[393215389,1762326663072,-166.59,0.00037181,60]
[393215390,1762326663081,-200.80409622,0.000372,2]
[393215391,1762326663091,-150.0,0.000372,2]
[393215392,1762326663100,-200.70772054,0.000372,2]
[393215393,1762326663109,-258.51176,0.000372,2]
[393215394,1762326663119,-1638.869975,0.000372,25]
[393215395,1762326663128,-500.0,0.0003726,2]
[393215396,1762326663137,-561.0,0.0003726,2]
[393215397,1762326663147,-1000.0,0.0003726,2]
[393215398,1762326663156,-1000.0,0.0003726,2]
[393215399,1762326663166,-326.07187848,0.00037261,10]
[393215400,1762326663175,-166.59,0.00037281,60]
[393215401,1762326663184,-166.59,0.00037381,60]
[393215402,1762326663194,-166.59,0.00037481,60]
[393215403,1762326663203,-1000.0,0.000375,2]
[393215404,1762326663212,-328.04142936,0.00037529,7]
[393215405,1762326663222,-1943.88068668,0.00037539,120]
[393215406,1762326663231,-563.471668,0.00037539,2]
[393215407,1762326663240,-500.0,0.00037567,2]
[393215408,1762326663249,-500.0,0.00037567,15]
[393215409,1762326663258,-251.56,0.00037567,15]
[393215410,1762326663268,-166.59,0.00037581,60]
[393215411,1762326663278,-252.51400103,0.000376,120]
[393215412,1762326663287,-177.80253763,0.000376,120]
[393215413,1762326663296,-221.23036306,0.000376,120]
[393215414,1762326663306,-179.70745586,0.000376,120]
[393215415,1762326663315,-186.09166609,0.000376,120]
[393215416,1762326663325,-920.36901343,0.000376,120]
[393215417,1762326663334,-180.30415711,0.000376,120]
[393215418,1762326663343,-1189.70514824,0.000376,120]
[393215419,1762326663352,-645.56735804,0.000376,120]
[393215420,1762326663361,-164.19434503,0.000376,120]
[393215421,1762326663371,-318.6826925,0.000376,120]
[393215422,1762326663380,-168.8053795,0.000376,120]
[393215423,1762326663389,-150.0,0.000376,10]
[393215424,1762326663398,-293.85068442,0.00037614,30]
[393215425,1762326663407,-150.0,0.00037639,30]
[393215426,1762326663420,-1500.0,0.00037639,30]
[393215427,1762326663430,-500.039999,0.00037641,30]
[393215428,1762326663439,-1792650.19199559,0.00037655,20]
[393215429,1762326668996,251.29,0.00017163,3]
[393215430,1762326669239,502.58,0.00018533,3]
[393215431,1762326679654,753.88,0.00017163,3]
[393215433,1762326686317,745.732621,0.00013699,2]
[393215434,1762326698057,864.0,0.00021194,20]
[393215439,1762326828025,5940.0,0.000215,4]
[393215440,1762326849684,699.91932423,0.000222,9]
[393215441,1762326857781,3200.0,0.000222,9]
[393215442,1762326859639,158.0,1.03e-06,2]
[393215443,1762326862686,158.0,1.03e-06,2]
[393215444,1762326865687,158.0,1.03e-06,2]
[393215445,1762326889493,-150.008,0.00016829,2]
[393215446,1762326889516,-73.98508632,0.00016829,2]
[393215447,1762326920759,-108.65159282,0.00016829,2]
[393215449,1762326981651,-225.35514762,0.00017172,2]
[393215461,1762326996582,-150.0,0.00017172,2]
[393215462,1762327012712,-500.0,0.00017172,2]
[393215463,1762327012742,-163.61067909,0.00017172,2]
[393215464,1762327012772,-1200.0,0.00017172,2]
[393215465,1762327012806,-500.0,0.00017172,2]
[393215466,1762327029031,-4687.6978726,0.00017173,2]
[393215467,1762327029106,-10000.01,0.00017173,2]
[393215468,1762327029235,-10000.01,0.00017173,2]
[393215469,1762327029369,-10000.01,0.00017173,2]
[393215470,1762327029482,-10000.01,0.00017173,2]
[393215471,1762327029621,-10000.01,0.00017173,2]
[393215472,1762327029734,-10000.01,0.00017173,2]
[393215473,1762327034917,-10000.01,0.00017173,2]
[393215474,1762327035020,-10000.01,0.00017173,2]
[393215475,1762327035154,-10000.01,0.00017173,2]
[393215476,1762327035278,-10000.01,0.00017173,2]
[393215477,1762327035400,-10000.01,0.00017173,2]
[393215478,1762327035522,-10000.01,0.00017173,2]
[393215479,1762327035690,-10000.01,0.00017173,2]
[393215480,1762327181474,159.0,1.03e-06,2]
[393215481,1762327184647,159.0,1.03e-06,2]
[393215482,1762327190939,159.0,1.03e-06,2]
[393215483,1762327194154,159.0,1.03e-06,2]
[393215484,1762327197287,159.0,1.03e-06,2]
[393215485,1762327360016,47783.0,0.00037581,30]
[393215487,1762327548123,-150.0,0.0001625,2]
[393215488,1762327548144,-154.95054414,0.00016729,2]
[393215489,1762327548164,-150.008,0.00016829,2]
[393215490,1762327548184,-179.26303026,0.00017036,2]
[393215491,1762327548203,-157.74860334,0.00017172,2]
[393215492,1762327548222,-514.40730907,0.00017172,2]
[393215493,1762327548243,-500.0,0.00017173,2]
[393215494,1762327548262,-500.0,0.00017173,2]
[393215495,1762327548285,-161369.60666219,0.00017173,2]
[393215523,1762327627115,-150.0,0.00016175,2]
[393215524,1762327627136,-150.0,0.00016338,2]
[393215525,1762327627161,-150.0,0.00016503,2]
[393215526,1762327627183,-150.0,0.00016838,2]
[393215527,1762327627206,-21911.622177,0.00017173,2]
[393215528,1762327628092,-96250.079142,0.00017173,2]
[393215529,1762327633092,-131270.73777,0.00017173,2]
[393215530,1762327642558,23341.59449758,0.0003758,30]
[393215531,1762327660011,15384.84901966,0.0003758,30]
[393215533,1762327703070,10834.29679976,0.0003758,30]
[393215534,1762327704605,6332.85266574,0.0003758,30]
[393215535,1762327706756,242682.47728202,0.0003758,30]
[393215536,1762327708554,73177.40126764,0.0003758,30]
[393215540,1762327712240,30954.44048293,0.0003758,30]
[393215545,1762327762302,-18240.56120007,0.00016663,2]
[393215546,1762327762324,-18240.56120007,0.00016831,2]
[393215547,1762327762346,-154.95054413,0.000169,2]
[393215548,1762327762367,-1197.67949324,0.00017,2]
[393215549,1762327762386,-18240.56120007,0.00017001,2]
[393215550,1762327762410,-91120.17331984,0.00017173,2]
[393215551,1762327771124,-16609.43879993,0.00017001,2]
[393215552,1762327771147,-3152.02001652,0.00017173,2]
[393215580,1762327832283,-10694.453238,0.00017001,2]
[393215596,1762327838023,-300.0,0.00017001,2]
[393215764,1762327840351,-14585.63753,0.00017001,2]
[393215774,1762327843535,-1029.34803193,0.00017001,2]
[393215775,1762327843544,-211.0,0.00017001,2]
[393215777,1762327843553,-16945.87242907,0.00017173,2]
[393215793,1762327846734,-2501.291353,0.00017173,2]
[393215794,1762327846745,-253.7425319,0.00017173,2]
[393215795,1762327897365,633247.09191093,0.00037595,30]
[393215796,1762327929654,310.22474316,0.00037595,60]
[393215797,1762327976876,7552.0,0.00037595,30]
[393215798,1762327990823,8000.0,0.00037595,30]
[393215799,1762328031454,500.0,0.00037595,60]
[393215800,1762328031699,500.0,0.00037595,60]
[393215801,1762328031987,500.0,0.00037595,60]
[393215802,1762328032233,500.0,0.00037595,60]
[393215803,1762328032677,500.0,0.00037595,60]
[393215804,1762328032927,500.0,0.00037595,60]
[393215805,1762328033182,500.0,0.00037595,60]
[393215806,1762328033421,500.0,0.00037595,60]
[393215807,1762328033660,500.0,0.00037595,60]
[393215808,1762328033916,500.0,0.00037595,60]
[393215809,1762328034158,500.0,0.00037595,60]
[393215810,1762328034414,500.0,0.00037595,60]
[393215811,1762328034904,500.0,0.00037595,60]
[393215812,1762328035352,500.0,0.00037595,60]
[393215813,1762328035435,439.16313739,0.00037595,60]
[393215872,1762328243047,90000.31156031,0.00037571,30]
[393215873,1762328297134,1427.0,0.00037571,61]
[393215879,1762328459846,183.221836,0.0003758,30]
[393215883,1762328841138,-150.0,0.00015778,2]
[393215884,1762328841175,-178.29,0.0001653,2]
[393215885,1762328841197,-160.15722562,0.00016617,2]
[393215886,1762328841219,-150.009,0.00016731,2]
[393215887,1762328841239,-500.0,0.0001683,2]
[393215888,1762328841258,-282.0,0.00016999,2]
[393215889,1762328841279,-1200.0,0.00016999,2]
[393215890,1762328841301,-300.0,0.00016999,2]
[393215891,1762328841322,-500.0,0.00017,2]
[393215892,1762328841344,-4002.70226013,0.00017,2]
[393215893,1762328841364,-154.95054413,0.00017038,2]
[393215894,1762328841388,-182.03722172,0.00017072,2]
[393215895,1762328841409,-47851.18389511,0.00017073,2]
[393215896,1762328841429,-502.73788384,0.00017073,2]
[393215897,1762328841448,-500.0,0.00017073,2]
[393215898,1762328841470,-77728.37008568,0.00017073,2]
[393215899,1762328951106,-156.9540811,0.00016949,2]
[393215900,1762328951126,-300.0,0.00017072,2]
[393215901,1762328951153,-19304.50473535,0.00017073,2]
[393215902,1762329003311,2000.0,0.0002,7]
[393215927,1762329032420,-150.0,0.00015043,2]
[393215928,1762329032431,-169.93,0.0001576,2]
[393215929,1762329032444,-254.89,0.00016476,2]
[393215931,1762329032455,-150.0,0.00016512,2]
[393215934,1762329032466,-150.0,0.00016679,2]
[393215937,1762329032479,-150.0,0.00016847,2]
[393215939,1762329032489,-347.76002268,0.00017071,2]
[393215941,1762329032500,-300.0,0.00017072,2]
[393215945,1762329032511,-564.0,0.00017072,2]
[393215947,1762329032520,-500.0,0.00017073,2]
[393215949,1762329032531,-76003.82782645,0.00017073,2]
[393215957,1762329038275,-5347.8547653,0.00017073,2]
[393215958,1762329038319,-10912.8040412,0.00017073,2]
[393216189,1762329043475,-7246.46561415,0.00016902,2]
[393216190,1762329043489,-5646.03111137,0.00016902,2]
[393216191,1762329043501,-920.38129747,0.00016902,2]
[393216192,1762329043514,-8167.5833329,0.00016902,2]
[393216193,1762329043630,-436.70567626,0.00016902,2]
[393216194,1762329043641,-350.0,0.00016902,2]
[393216199,1762329046853,-10323.39416792,0.00016902,2]
[393216200,1762329046863,-4603.54340055,0.00017073,2]
[393216201,1762329046876,-1098.37612677,0.00017073,2]
[393216205,1762329080580,857.24,0.00017063,3]
[393216207,1762329111581,761.09,0.00017063,3]
[393216208,1762329205477,-150.0,0.00015101,2]
[393216209,1762329205504,-103.44630284,0.0001582,2]
[393216210,1762329250976,-153.81499948,0.00015153,2]
[393216211,1762329251000,-153.81499948,0.00015306,2]
[393216212,1762329251023,-103.22249892,0.00015461,2]
[393216214,1762329378152,800.071037,0.00013699,2]
[393216222,1762329492609,-50.59250056,0.00015461,2]
[393216223,1762329492639,-278.71284974,0.00016465,2]
[393216224,1762329492670,-300.0,0.00016971,2]
[393216225,1762329492699,-417.17115496,0.00016972,2]
[393216226,1762329492731,-500.0,0.00016972,2]
[393216227,1762329492766,-500.0,0.00016972,2]
[393216228,1762329492799,-455.2342759,0.00016972,2]
[393216229,1762329492833,-500.0,0.00016972,2]
[393216230,1762329492864,-308.46390023,0.00016972,2]
[393216231,1762329493036,-3379.66063722,0.00016973,2]